fUST/lending_fUST_20250902
["ID","MTS","AMOUNT","RATE_DAILY","PERIOD"]
[382834989,1756752650177,-817.0,0.00013707,2]
[382834991,1756752650186,-530.14184084,0.00013796,2]
[382834993,1756752650195,-160.0,0.00013796,2]
[382834995,1756752650204,-160.0,0.00013796,2]
[382834997,1756752650213,-846.10922732,0.00013796,2]
[382834999,1756752650222,-11366.76240249,0.00013796,2]
[382835001,1756752650232,-160.0,0.00013796,2]
[382835003,1756752650241,-232.83393981,0.00013796,2]
[382835005,1756752650251,-321.65739344,0.00013796,2]
[382835007,1756752650260,-217.44302069,0.00013796,2]
[382835009,1756752650269,-417.15472785,0.00013796,2]
[382835011,1756752650278,-160.0,0.00013796,2]
[382835013,1756752650287,-160.0,0.00013796,2]
[382835015,1756752650296,-160.0,0.00013796,2]
[382835017,1756752650305,-160.0,0.00013796,2]
[382835019,1756752650315,-300.0,0.00013869,2]
[382835021,1756752650324,-300.0,0.00013869,2]
[382835023,1756752650332,-300.0,0.00013869,2]
[382835025,1756752650341,-300.0,0.00013869,2]
[382835027,1756752650350,-300.0,0.00013869,2]
[382835029,1756752650360,-300.0,0.00013869,2]
[382835030,1756752650369,-300.0,0.00013869,2]
[382835032,1756752650379,-300.0,0.00013869,2]
[382835034,1756752650388,-300.0,0.00013869,2]
[382835036,1756752650397,-300.0,0.00013869,2]
[382835038,1756752650407,-300.0,0.00013869,2]
[382835040,1756752650416,-300.0,0.00013869,2]
[382835042,1756752650426,-300.0,0.00013869,2]
[382835044,1756752650435,-300.0,0.00013869,2]
[382835046,1756752650447,-300.0,0.00013869,2]
[382835048,1756752650457,-600.0,0.00013869,2]
[382835050,1756752650466,-151.0,0.00013869,2]
[382835052,1756752650475,-151.0,0.00013869,2]
[382835054,1756752650486,-151.0,0.00013869,2]
[382835056,1756752650495,-151.0,0.00013869,2]
[382835058,1756752650504,-201.964818,0.00013869,2]
[382835060,1756752650514,-1000.0,0.000139,2]
[382835062,1756752650523,-306.0,0.000139,2]
[382835064,1756752650532,-647.0,0.000139,2]
[382835066,1756752650542,-817.0,0.00013902,2]
[382835068,1756752650551,-1767.0,0.00013939,2]
[382835070,1756752650560,-1767.0,0.00013939,2]
[382835072,1756752650570,-1767.0,0.00013939,2]
[382835074,1756752650579,-1767.0,0.00013939,2]
[382835076,1756752650589,-1767.0,0.00013939,2]
[382835078,1756752650598,-156.38717294,0.00013939,2]
[382835080,1756752650607,-1767.0,0.00013939,2]
[382835082,1756752650616,-1767.0,0.00013939,2]
[382835084,1756752650626,-1767.0,0.00013939,2]
[382835086,1756752650635,-1792.99096568,0.00013939,2]
[382835088,1756752650647,-151.0,0.00013959,2]
[382835090,1756752650657,-50000.0,0.00013959,2]
[382835092,1756752650667,-480.0,0.00013972,2]
[382835094,1756752650676,-480.0,0.00013972,2]
[382835096,1756752650686,-509.36,0.00013972,2]
[382835098,1756752650695,-1417.58,0.00013972,2]
[382835100,1756752650705,-480.0,0.00013972,2]
[382835102,1756752650714,-480.0,0.00013972,2]
[382835103,1756752650723,-480.0,0.00013972,2]
[382835105,1756752650733,-192.07468,0.00013972,2]
[382835107,1756752650742,-480.0,0.00013972,2]
[382835109,1756752650751,-169.46,0.00013972,2]
[382835111,1756752650761,-200.78,0.00013972,2]
[382835113,1756752650770,-242.22,0.00013972,2]
[382835115,1756752650780,-480.0,0.00013972,2]
[382835117,1756752650790,-480.0,0.00013972,2]
[382835119,1756752650799,-153.83,0.00013972,2]
[382835121,1756752650808,-248.42,0.00013972,2]
[382835123,1756752650817,-231.47,0.00013972,2]
[382835125,1756752650827,-236.0,0.00013972,2]
[382835127,1756752650837,-480.0,0.00013972,2]
[382835129,1756752650847,-480.0,0.00013972,2]
[382835131,1756752650856,-480.0,0.00013972,2]
[382835133,1756752650866,-480.0,0.00013972,2]
[382835135,1756752650875,-480.0,0.00013972,2]
[382835137,1756752650885,-556.68,0.00013972,2]
[382835139,1756752650894,-480.0,0.00013972,2]
[382835141,1756752650903,-235.93,0.00013972,2]
[382835143,1756752650913,-480.0,0.00013972,2]
[382835145,1756752650923,-289.77427472,0.00013972,2]
[382835147,1756752650932,-156.35,0.00013972,2]
[382835149,1756752650941,-480.0,0.00013972,2]
[382835150,1756752650950,-480.0,0.00013972,2]
[382835152,1756752650959,-206.08,0.00013972,2]
[382835154,1756752650969,-480.0,0.00013972,2]
[382835156,1756752650978,-480.0,0.00013972,2]
[382835158,1756752650987,-370.74,0.00013972,2]
[382835160,1756752650997,-533.67,0.00013972,2]
[382835162,1756752651007,-480.0,0.00013972,2]
[382835164,1756752651016,-189.01,0.00013972,2]
[382835166,1756752651025,-480.0,0.00013972,2]
[382835168,1756752651035,-353.05,0.00013972,2]
[382835170,1756752651045,-175.65,0.00013972,2]
[382835172,1756752651055,-624.23,0.00013972,2]
[382835174,1756752651064,-505.72,0.00013972,2]
[382835176,1756752651073,-480.0,0.00013972,2]
[382835178,1756752651082,-480.0,0.00013972,2]
[382835180,1756752651092,-480.34,0.00013972,2]
[382835182,1756752651101,-167.17,0.00013972,2]
[382835184,1756752651111,-161.64,0.00013972,2]
[382835186,1756752651120,-200.44,0.00013972,2]
[382835188,1756752651130,-480.0,0.00013972,2]
[382835190,1756752651140,-480.0,0.00013972,2]
[382835192,1756752651149,-480.0,0.00013972,2]
[382835194,1756752651158,-483.6,0.00013972,2]
[382835196,1756752651167,-623.81,0.00013972,2]
[382835198,1756752651176,-180.43,0.00013972,2]
[382835200,1756752651187,-562.48,0.00013972,2]
[382835202,1756752651196,-613.13,0.00013972,2]
[382835204,1756752651205,-208.02,0.00013972,2]
[382835206,1756752651214,-281.34,0.00013972,2]
[382835208,1756752651224,-480.0,0.00013972,2]
[382835209,1756752651233,-480.0,0.00013972,2]
[382835211,1756752651242,-252.1,0.00013972,2]
[382835213,1756752651251,-296.61,0.00013972,2]
[382835215,1756752651261,-492.62,0.00013972,2]
[382835217,1756752651270,-480.0,0.00013972,2]
[382835219,1756752651280,-480.0,0.00013972,2]
[382835221,1756752651289,-480.0,0.00013972,2]
[382835223,1756752651299,-480.0,0.00013972,2]
[382835225,1756752651308,-480.0,0.00013972,2]
[382835227,1756752651319,-592.4,0.00013972,2]
[382835229,1756752651328,-532.0,0.00013972,2]
[382835231,1756752651338,-480.0,0.00013972,2]
[382835233,1756752651347,-480.0,0.00013972,2]
[382835235,1756752651357,-503.19,0.00013972,2]
[382835237,1756752651367,-480.0,0.00013972,2]
[382835239,1756752651380,-480.0,0.00013972,2]
[382835241,1756752651389,-180.17,0.00013972,2]
[382835243,1756752651398,-480.0,0.00013972,2]
[382835245,1756752651408,-480.0,0.00013972,2]
[382835247,1756752651417,-480.0,0.00013972,2]
[382835249,1756752651431,-484.57100462,0.00013972,2]
[382835251,1756752651442,-548.99,0.00013972,2]
[382835253,1756752651452,-269.18,0.00013972,2]
[382835255,1756752651467,-480.0,0.00013972,2]
[382835257,1756752651480,-480.0,0.00013972,2]
[382835259,1756752651489,-189.53,0.00013972,2]
[382835261,1756752651499,-480.0,0.00013972,2]
[382835263,1756752651508,-480.0,0.00013972,2]
[382835265,1756752651518,-520.0,0.00013972,2]
[382835267,1756752651527,-480.0,0.00013972,2]
[382835268,1756752651536,-480.0,0.00013972,2]
[382835271,1756752651547,-505.99726117,0.00013972,2]
[382835273,1756752651557,-480.0,0.00013972,2]
[382835274,1756752651566,-700.63,0.00013972,2]
[382835277,1756752651575,-480.0,0.00013972,2]
[382835278,1756752651585,-480.0,0.00013972,2]
[382835280,1756752651594,-640.83,0.00013972,2]
[382835282,1756752651603,-486.6213926,0.00013972,2]
[382835284,1756752651612,-324.19,0.00013972,2]
[382835286,1756752651622,-480.0,0.00013972,2]
[382835288,1756752651631,-480.0,0.00013972,2]
[382835290,1756752651640,-480.0,0.00013972,2]
[382835292,1756752651652,-579.17,0.00013972,2]
[382835294,1756752651662,-508.51,0.00013972,2]
[382835296,1756752651671,-480.0,0.00013972,2]
[382835298,1756752651680,-431.84,0.00013972,2]
[382835300,1756752651690,-480.0,0.00013972,2]
[382835302,1756752651701,-480.0,0.00013972,2]
[382835304,1756752651710,-480.0,0.00013972,2]
[382835306,1756752651720,-480.0,0.00013972,2]
[382835308,1756752651730,-597.73,0.00013972,2]
[382835310,1756752651739,-480.0,0.00013972,2]
[382835312,1756752651748,-480.0,0.00013972,2]
[382835314,1756752651758,-480.0,0.00013972,2]
[382835316,1756752651767,-668.88,0.00013972,2]
[382835318,1756752651776,-688.87,0.00013972,2]
[382835320,1756752651786,-480.0,0.00013972,2]
[382835322,1756752651795,-480.0,0.00013972,2]
[382835324,1756752651804,-480.0,0.00013972,2]
[382835326,1756752651814,-480.0,0.00013972,2]
[382835328,1756752651824,-480.0,0.00013972,2]
[382835330,1756752651833,-480.0,0.00013972,2]
[382835332,1756752651842,-164.39,0.00013972,2]
[382835334,1756752651851,-480.0,0.00013972,2]
[382835336,1756752651861,-554.34,0.00013972,2]
[382835338,1756752651870,-181.69,0.00013972,2]
[382835340,1756752651879,-480.0,0.00013972,2]
[382835342,1756752651889,-376.34318526,0.00013972,2]
[382835344,1756752651899,-208.32049847,0.00013972,2]
[382835346,1756752651908,-480.0,0.00013972,2]
[382835348,1756752651917,-548.87,0.00013972,2]
[382835350,1756752651926,-480.0,0.00013972,2]
[382835351,1756752651935,-480.0,0.00013972,2]
[382835353,1756752651944,-484.58303733,0.00013972,2]
[382835355,1756752651954,-480.0,0.00013972,2]
[382835357,1756752651963,-480.0,0.00013972,2]
[382835359,1756752651972,-480.0,0.00013972,2]
[382835361,1756752651981,-480.0,0.00013972,2]
[382835363,1756752651990,-480.0,0.00013972,2]
[382835365,1756752652000,-480.0,0.00013972,2]
[382835367,1756752652009,-480.0,0.00013972,2]
[382835369,1756752652018,-181.03,0.00013972,2]
[382835371,1756752652027,-480.0,0.00013972,2]
[382835373,1756752652037,-480.0,0.00013972,2]
[382835375,1756752652046,-480.0,0.00013972,2]
[382835377,1756752652056,-498.31768226,0.00013972,2]
[382835379,1756752652066,-480.0,0.00013972,2]
[382835381,1756752652075,-480.0,0.00013972,2]
[382835383,1756752652085,-667.0,0.00013972,2]
[382835385,1756752652094,-480.0,0.00013972,2]
[382835387,1756752652103,-480.0,0.00013972,2]
[382835389,1756752652113,-480.0,0.00013972,2]
[382835391,1756752652122,-480.0,0.00013972,2]
[382835393,1756752652131,-480.0,0.00013972,2]
[382835395,1756752652141,-481.41659636,0.00013972,2]
[382835397,1756752652150,-212.48,0.00013972,2]
[382835399,1756752652159,-480.0,0.00013972,2]
[382835400,1756752652169,-480.0,0.00013972,2]
[382835401,1756752652178,-480.0,0.00013972,2]
[382835402,1756752652187,-480.0,0.00013972,2]
[382835403,1756752652334,-480.0,0.00013972,2]
[382835404,1756752652347,-480.0,0.00013972,2]
[382835405,1756752652356,-615.05,0.00013972,2]
[382835406,1756752652365,-483.55394333,0.00013972,2]
[382835407,1756752652374,-168.45,0.00013972,2]
[382835408,1756752652383,-480.0,0.00013972,2]
[382835409,1756752652392,-480.0,0.00013972,2]
[382835410,1756752652401,-753.09,0.00013972,2]
[382835411,1756752652411,-480.0,0.00013972,2]
[382835412,1756752652420,-480.0,0.00013972,2]
[382835413,1756752652430,-480.0,0.00013972,2]
[382835414,1756752652439,-2266.56,0.00013972,2]
[382835415,1756752652448,-480.0,0.00013972,2]
[382835416,1756752652458,-480.0,0.00013972,2]
[382835417,1756752652468,-480.0,0.00013972,2]
[382835418,1756752652477,-480.0,0.00013972,2]
[382835419,1756752652487,-511.16,0.00013972,2]
[382835420,1756752652496,-920.79,0.00013972,2]
[382835421,1756752652506,-268.22,0.00013972,2]
[382835422,1756752652515,-480.0,0.00013972,2]
[382835424,1756752652525,-480.0,0.00013972,2]
[382835425,1756752652534,-480.0,0.00013972,2]
[382835427,1756752652544,-480.0,0.00013972,2]
[382835429,1756752652553,-480.0,0.00013972,2]
[382835431,1756752652562,-694.03,0.00013972,2]
[382835433,1756752652572,-480.0,0.00013972,2]
[382835435,1756752652581,-564.46,0.00013972,2]
[382835437,1756752652591,-579.12,0.00013972,2]
[382835439,1756752652600,-480.0,0.00013972,2]
[382835441,1756752652613,-480.0,0.00013972,2]
[382835443,1756752652622,-480.0,0.00013972,2]
[382835445,1756752652632,-480.0,0.00013972,2]
[382835447,1756752652641,-3115.4,0.00013972,2]
[382835449,1756752652653,-480.0,0.00013972,2]
[382835451,1756752652663,-1000.0,0.00013972,2]
[382835453,1756752652672,-480.0,0.00013972,2]
[382835455,1756752652681,-480.0,0.00013972,2]
[382835457,1756752652691,-480.0,0.00013972,2]
[382835459,1756752652700,-1162.68,0.00013972,2]
[382835461,1756752652711,-480.0,0.00013972,2]
[382835463,1756752652721,-571.48,0.00013972,2]
[382835465,1756752652731,-480.0,0.00013972,2]
[382835467,1756752652741,-480.0,0.00013972,2]
[382835469,1756752652751,-480.0,0.00013972,2]
[382835471,1756752652760,-480.0,0.00013972,2]
[382835473,1756752652769,-480.29807398,0.00013972,2]
[382835475,1756752652778,-480.0,0.00013972,2]
[382835477,1756752652787,-480.0,0.00013972,2]
[382835479,1756752652797,-480.0,0.00013972,2]
[382835481,1756752652806,-480.0,0.00013972,2]
[382835483,1756752652815,-480.0,0.00013972,2]
[382835485,1756752652824,-480.0,0.00013972,2]
[382835487,1756752652834,-1242.4,0.00013972,2]
[382835489,1756752652843,-480.0,0.00013972,2]
[382835491,1756752652853,-480.0,0.00013972,2]
[382835493,1756752652863,-425.8,0.00013972,2]
[382835495,1756752652872,-389.69,0.00013972,2]
[382835497,1756752652881,-549.94477294,0.00013972,2]
[382835499,1756752652890,-555.89024485,0.00013972,2]
[382835501,1756752652900,-480.0,0.00013972,2]
[382835503,1756752652909,-480.0,0.00013972,2]
[382835505,1756752652919,-485.99990817,0.00013972,2]
[382835507,1756752652928,-480.0,0.00013972,2]
[382835509,1756752652938,-480.0,0.00013972,2]
[382835511,1756752652948,-480.0,0.00013972,2]
[382835513,1756752652957,-480.0,0.00013972,2]
[382835515,1756752652966,-480.0,0.00013972,2]
[382835516,1756752652975,-480.0,0.00013972,2]
[382835518,1756752652987,-480.0,0.00013972,2]
[382835520,1756752652996,-480.0,0.00013972,2]
[382835522,1756752653006,-480.0,0.00013972,2]
[382835524,1756752653015,-616.55,0.00013972,2]
[382835526,1756752653024,-599.05,0.00013972,2]
[382835528,1756752653033,-564.36,0.00013972,2]
[382835530,1756752653042,-480.0,0.00013972,2]
[382835532,1756752653052,-480.0,0.00013972,2]
[382835534,1756752653062,-480.0,0.00013972,2]
[382835536,1756752653071,-480.0,0.00013972,2]
[382835538,1756752653080,-480.0,0.00013972,2]
[382835540,1756752653089,-738.71,0.00013972,2]
[382835542,1756752653098,-480.0,0.00013972,2]
[382835544,1756752653108,-1484.02,0.00013972,2]
[382835546,1756752653118,-480.0,0.00013972,2]
[382835548,1756752653128,-480.0,0.00013972,2]
[382835550,1756752653137,-480.0,0.00013972,2]
[382835552,1756752653147,-594.72,0.00013972,2]
[382835554,1756752653157,-480.0,0.00013972,2]
[382835556,1756752653167,-480.0,0.00013972,2]
[382835558,1756752653177,-497.25,0.00013972,2]
[382835560,1756752653188,-5123.42,0.00013972,2]
[382835562,1756752653197,-1779.12,0.00013972,2]
[382835564,1756752653207,-480.0,0.00013972,2]
[382835566,1756752653217,-480.0,0.00013972,2]
[382835568,1756752653226,-480.0,0.00013972,2]
[382835570,1756752653236,-480.0,0.00013972,2]
[382835572,1756752653246,-480.0,0.00013972,2]
[382835574,1756752653255,-480.0,0.00013972,2]
[382835576,1756752653264,-480.0,0.00013972,2]
[382835578,1756752653273,-480.0,0.00013972,2]
[382835580,1756752653283,-509.18,0.00013972,2]
[382835582,1756752653292,-480.0,0.00013972,2]
[382835584,1756752653301,-480.0,0.00013972,2]
[382835586,1756752653311,-480.80762895,0.00013972,2]
[382835588,1756752653320,-480.0,0.00013972,2]
[382835590,1756752653329,-480.0,0.00013972,2]
[382835592,1756752653338,-682.83,0.00013972,2]
[382835594,1756752653347,-480.0,0.00013972,2]
[382835596,1756752653356,-626.08,0.00013972,2]
[382835598,1756752653366,-480.0,0.00013972,2]
[382835600,1756752653375,-480.0,0.00013972,2]
[382835602,1756752653384,-192.91,0.00013972,2]
[382835604,1756752653394,-480.0,0.00013972,2]
[382835606,1756752653403,-480.0,0.00013972,2]
[382835608,1756752653413,-480.0,0.00013972,2]
[382835610,1756752653422,-480.0,0.00013972,2]
[382835612,1756752653432,-480.0,0.00013972,2]
[382835614,1756752653441,-626.41,0.00013972,2]
[382835616,1756752653452,-353.12,0.00013972,2]
[382835618,1756752653461,-1236.9,0.00013972,2]
[382835620,1756752653470,-480.0,0.00013972,2]
[382835622,1756752653480,-685.05,0.00013972,2]
[382835624,1756752653490,-480.0,0.00013972,2]
[382835626,1756752653499,-480.0,0.00013972,2]
[382835628,1756752653508,-480.0,0.00013972,2]
[382835630,1756752653518,-480.0,0.00013972,2]
[382835632,1756752653528,-480.0,0.00013972,2]
[382835634,1756752653538,-480.0,0.00013972,2]
[382835636,1756752653547,-480.0,0.00013972,2]
[382835638,1756752653557,-556.94,0.00013972,2]
[382835640,1756752653566,-480.0,0.00013972,2]
[382835642,1756752653576,-480.0,0.00013972,2]
[382835644,1756752653585,-480.0,0.00013972,2]
[382835646,1756752653594,-480.0,0.00013972,2]
[382835648,1756752653604,-480.0,0.00013972,2]
[382835650,1756752653613,-480.0,0.00013972,2]
[382835652,1756752653622,-631.68,0.00013972,2]
[382835654,1756752653632,-480.0,0.00013972,2]
[382835656,1756752653642,-480.0,0.00013972,2]
[382835658,1756752653654,-480.0,0.00013972,2]
[382835660,1756752653663,-750.73,0.00013972,2]
[382835661,1756752653672,-480.0,0.00013972,2]
[382835663,1756752653682,-373.04717275,0.00013972,2]
[382835665,1756752653691,-480.0,0.00013972,2]
[382835667,1756752653700,-480.0,0.00013972,2]
[382835669,1756752653710,-480.0,0.00013972,2]
[382835671,1756752653719,-480.0,0.00013972,2]
[382835673,1756752653730,-819.12,0.00013972,2]
[382835675,1756752653739,-3211.07,0.00013972,2]
[382835677,1756752653749,-480.0,0.00013972,2]
[382835679,1756752653758,-480.0,0.00013972,2]
[382835681,1756752653768,-480.0,0.00013972,2]
[382835683,1756752653777,-480.0,0.00013972,2]
[382835685,1756752653786,-491.99,0.00013972,2]
[382835687,1756752653795,-1086.27,0.00013972,2]
[382835688,1756752653804,-200.22,0.00013972,2]
[382835690,1756752653814,-480.0,0.00013972,2]
[382835692,1756752653823,-480.0,0.00013972,2]
[382835694,1756752653832,-480.0,0.00013972,2]
[382835696,1756752653842,-480.0,0.00013972,2]
[382835698,1756752653851,-480.0,0.00013972,2]
[382835700,1756752653860,-576.64,0.00013972,2]
[382835702,1756752653869,-480.0,0.00013972,2]
[382835704,1756752653879,-480.0,0.00013972,2]
[382835706,1756752653888,-480.0,0.00013972,2]
[382835708,1756752653897,-480.0,0.00013972,2]
[382835710,1756752653908,-476.33,0.00013972,2]
[382835712,1756752653917,-480.0,0.00013972,2]
[382835714,1756752653926,-2100.38,0.00013972,2]
[382835716,1756752653936,-482.27724468,0.00013972,2]
[382835718,1756752653945,-291.53,0.00013972,2]
[382835720,1756752653954,-480.0,0.00013972,2]
[382835722,1756752653964,-1577.9,0.00013972,2]
[382835724,1756752653973,-480.0,0.00013972,2]
[382835726,1756752653983,-1542.28,0.00013972,2]
[382835728,1756752653992,-480.0,0.00013972,2]
[382835730,1756752654002,-480.0,0.00013972,2]
[382835732,1756752654011,-504.1,0.00013972,2]
[382835734,1756752654021,-480.0,0.00013972,2]
[382835736,1756752654031,-480.0,0.00013972,2]
[382835738,1756752654040,-480.0,0.00013972,2]
[382835740,1756752654049,-256.35,0.00013972,2]
[382835742,1756752654058,-576.44,0.00013972,2]
[382835744,1756752654067,-480.0,0.00013972,2]
[382835746,1756752654077,-480.0,0.00013972,2]
[382835747,1756752654086,-480.0,0.00013972,2]
[382835749,1756752654095,-480.0,0.00013972,2]
[382835751,1756752654105,-480.0,0.00013972,2]
[382835753,1756752654115,-480.0,0.00013972,2]
[382835755,1756752654125,-480.0,0.00013972,2]
[382835757,1756752654135,-480.0,0.00013972,2]
[382835759,1756752654144,-338.03640766,0.00013972,2]
[382835761,1756752654154,-480.0,0.00013972,2]
[382835763,1756752654163,-337.15,0.00013972,2]
[382835765,1756752654172,-480.0,0.00013972,2]
[382835767,1756752654181,-480.0,0.00013972,2]
[382835769,1756752654191,-525.33,0.00013972,2]
[382835771,1756752654200,-480.0,0.00013972,2]
[382835773,1756752654209,-633.39,0.00013972,2]
[382835775,1756752654219,-490.33,0.00013972,2]
[382835777,1756752654229,-480.0,0.00013972,2]
[382835779,1756752654239,-339.91,0.00013972,2]
[382835781,1756752654248,-773.53,0.00013972,2]
[382835783,1756752654257,-480.0,0.00013972,2]
[382835785,1756752654267,-480.0,0.00013972,2]
[382835787,1756752654276,-480.0,0.00013972,2]
[382835789,1756752654286,-480.0,0.00013972,2]
[382835791,1756752654295,-197.89628719,0.00013972,2]
[382835793,1756752654305,-1971.19,0.00013972,2]
[382835795,1756752654315,-480.0,0.00013972,2]
[382835797,1756752654325,-480.0,0.00013972,2]
[382835799,1756752654335,-480.0,0.00013972,2]
[382835801,1756752654345,-278.02,0.00013972,2]
[382835803,1756752654355,-613.24,0.00013972,2]
[382835805,1756752654365,-480.0,0.00013972,2]
[382835807,1756752654374,-335.25736614,0.00013972,2]
[382835809,1756752654384,-480.0,0.00013972,2]
[382835811,1756752654393,-562.49,0.00013972,2]
[382835813,1756752654402,-480.0,0.00013972,2]
[382835815,1756752654411,-480.0,0.00013972,2]
[382835817,1756752654421,-480.0,0.00013972,2]
[382835819,1756752654430,-480.0,0.00013972,2]
[382835821,1756752654439,-480.0,0.00013972,2]
[382835823,1756752654449,-480.0,0.00013972,2]
[382835825,1756752654459,-286.33439683,0.00013972,2]
[382835827,1756752654470,-942.08,0.00013972,2]
[382835829,1756752654479,-480.0,0.00013972,2]
[382835831,1756752654489,-480.0,0.00013972,2]
[382835832,1756752654498,-480.0,0.00013972,2]
[382835834,1756752654507,-609.01,0.00013972,2]
[382835836,1756752654517,-480.0,0.00013972,2]
[382835838,1756752654526,-975.0,0.00013984,2]
[382835840,1756752654535,-2153.0,0.00013984,2]
[382835842,1756752654545,-632.0,0.00013984,2]
[382835844,1756752654554,-168.0,0.00013992,2]
[382835846,1756752654564,-168.0,0.00013995,2]
[382835848,1756752654573,-302.24,0.00014,2]
[382835850,1756752654582,-168.0,0.00014027,2]
[382835852,1756752654592,-3000.0,0.0001404,2]
[382835854,1756752654601,-168.0,0.00014059,2]
[382835856,1756752654611,-168.0,0.00014077,2]
[382835858,1756752654620,-200.0,0.000141,2]
[382835860,1756752654629,-151.0,0.000141,2]
[382835862,1756752654638,-168.0,0.0001411,2]
[382835864,1756752654649,-168.0,0.00014122,2]
[382835866,1756752654659,-151.0,0.00014138,2]
[382835868,1756752654668,-168.0,0.00014146,2]
[382835870,1756752654677,-500.0,0.00014162,2]
[382835872,1756752654687,-500.0,0.00014162,2]
[382835874,1756752654697,-500.0,0.00014162,2]
[382835876,1756752654706,-500.0,0.00014165,2]
[382835878,1756752654716,-500.0,0.00014165,2]
[382835880,1756752654725,-168.0,0.00014181,2]
[382835882,1756752654736,-168.0,0.00014182,2]
[382835884,1756752654746,-168.0,0.00014187,2]
[382835886,1756752654755,-500.0,0.00014195,2]
[382835888,1756752654764,-151.0,0.000142,2]
[382835890,1756752654774,-500.0,0.00014206,2]
[382835892,1756752654783,-541.21600235,0.00014206,2]
[382835894,1756752654792,-500.0,0.00014206,2]
[382835896,1756752654801,-168.0,0.0001421,2]
[382835898,1756752654810,-500.0,0.00014221,2]
[382835900,1756752654819,-536.59822786,0.00014221,2]
[382835902,1756752654829,-1000.0,0.00014221,2]
[382835904,1756752654839,-1000.0,0.00014221,2]
[382835906,1756752654848,-1000.0,0.00014221,2]
[382835908,1756752654858,-500.0,0.00014242,2]
[382835910,1756752654867,-510.68393738,0.00014242,2]
[382835911,1756752654876,-480.0,0.00014246,2]
[382835912,1756752654886,-480.0,0.00014246,2]
[382835913,1756752654895,-509.36,0.00014246,2]
[382835914,1756752654906,-1417.58,0.00014246,2]
[382835915,1756752654915,-480.0,0.00014246,2]
[382835916,1756752654924,-1000.38589251,0.00014246,2]
[382835917,1756752654934,-480.0,0.00014246,2]
[382835918,1756752654943,-480.0,0.00014246,2]
[382835919,1756752654952,-480.0,0.00014246,2]
[382835920,1756752654961,-480.0,0.00014246,2]
[382835921,1756752654970,-480.0,0.00014246,2]
[382835922,1756752654981,-480.0,0.00014246,2]
[382835924,1756752654991,-493.71,0.00014246,2]
[382835926,1756752655001,-205.55,0.00014246,2]
[382835928,1756752655010,-556.68,0.00014246,2]
[382835930,1756752655020,-151.0,0.00014246,2]
[382835932,1756752655029,-151.22827789,0.00014246,2]
[382835934,1756752655038,-151.2899446,0.00014246,2]
[382835936,1756752655047,-151.0,0.00014246,2]
[382835938,1756752655057,-151.0,0.00014246,2]
[382835940,1756752655066,-153.92492427,0.00014246,2]